Cogmind - Beta 17 @@@ ROGUE MODE // 2026.07.28 @ 04:16:17 Player: JP Result: Destroyed by X8-F83(x) with Makeshift Spear Performance ------------- Evolutions (0) 0 Regions Visited (3) 600 Robots Destroyed (14) 70 Value Destroyed (339) 339 Prototype IDs (2) 40 Alien Tech Used (0) 0 Bonus (788) 788 TOTAL SCORE: 1837 Bonus ------- Registered with UFD 300 Met Optimus in HQ 500 Friendly Fire -12 Cogmind --------- Core Integrity 0/250 Matter 245/300 Energy 72/100 System Corruption 1% Temperature Warm (158) Movement Walking (120) Location -7/Scraptown Parts ------- > --- POWER (1) -------- (None) > --- PROPULSION (2) --- Armored Leg Armored Leg > --- UTILITY (2) ------ Medium Storage Unit Signal Interpreter > --- WEAPON (2) ------- Katana > --- INVENTORY (10) --- Armored Leg Armored Leg Wheel Scrap Suit Signal Interpreter Propulsion Shielding Propulsion Shielding Overtuned Pulse Rifle Grenade Launcher Peak State ------------ > --- POWER ------------ Light Deuterium Engine > --- PROPULSION ------- Armored Leg Armored Leg > --- UTILITY ---------- Medium Storage Unit Signal Interpreter > --- WEAPON ----------- Medium Laser Overtuned Pulse Rifle > --- INVENTORY -------- Armored Leg Armored Leg Wheel Scrap Suit Signal Interpreter Propulsion Shielding Propulsion Shielding Grenade Launcher Katana [Rating: 21] Favorites ----------- Power Light Ion Engine Engine Light Ion Engine Propulsion Aluminum Leg Leg Aluminum Leg Wheel Compact Wheel Utility Signal Interpreter Storage Medium Storage Unit Processor Signal Interpreter Weapon Medium Laser Energy Gun Medium Laser Ballistic Gun Subdweller Machine Gun Launcher Grenade Launcher Slashing Weapon Katana Build | -11 -10 -10 -7 ------- Run | Yrd Mat Sub Scr Slots Evolved . | . . . . Power . | . . . . Propulsion . | . . . . Utility . | . . . . Weapon . | . . . . Parts Attached 19 | 8 3 1 7 Power 3 | 2 . . 1 Engine 3 | 2 . . 1 Core . | . . . . Reactor . | . . . . Propulsion 5 | 3 . . 2 Treads . | . . . . Leg 4 | 2 . . 2 Wheel 1 | 1 . . . Hover . | . . . . Flight . | . . . . Utility 3 | 1 2 . . Device . | . . . . Storage 2 | 1 1 . . Processor 1 | . 1 . . Hackware . | . . . . Protection . | . . . . Artifact . | . . . . Weapon 8 | 2 1 1 4 Energy Gun 5 | 2 1 . 2 Energy Cannon . | . . . . Ballistic Gun 1 | . . 1 . Ballistic Cannon . | . . . . Launcher 1 | . . . 1 Special Weapon . | . . . . Impact Weapon . | . . . . Slashing Weapon 1 | . . . 1 Piercing Weapon . | . . . . Special Melee Weapon . | . . . . Unidentified Prototypes . | . . . . Parts Lost 4 | . . . 4 Power 2 | . . . 2 Propulsion . | . . . . Utility . | . . . . Weapon 2 | . . . 2 Highest Loss Streak 4 | . . . 4 To Critical Strikes . | . . . . Average Backups 9 | 3 7 9 9 Power . | . 1 . . Propulsion 2 | 1 3 2 2 Utility 4 | . 1 5 4 Weapon 2 | 1 1 2 2 Tool/Special . | . . . . Unused Backups 20 | . 6 1 13 Power 1 | . 1 . . Propulsion 9 | . 3 1 5 Utility 6 | . . . 6 Weapon 4 | . 2 . 2 Tool/Special . | . . . . Average Slot Usage (%) 98 | . 90 100 99 Engine 13 | . 14 14 13 Leg 27 | . 28 28 27 Storage 14 | . 14 14 14 Processor 12 | . 4 14 14 Energy Gun 19 | . 28 22 14 Ballistic Gun 8 | . . 5 13 Peak Build Rating 21 | 6 8 9 21 Average Rating 9 | 3 6 8 12 On Entrance 5 | . 6 8 9 Avg Prop Armor Cover (%) 10 | 10 . . . Naked Turns . | . . . . Heaviest Build 21 | 13 19 19 21 Greatest Support 32 | 20 20 20 32 Greatest Overweight (x) 1 | . . . 1 Average Overweight (x) . | . . . . Largest Inventory Capacity 10 | 8 10 10 10 Average Capacity 9 | 6 8 10 10 Most Carried 10 | 6 10 10 10 Average Carried 9 | 3 7 9 9 Final Capacity 10 | 8 10 10 10 Final Carried 10 | 6 10 10 10 Class Distribution -------------------- 100% | Mutant Dominant Class ---------------- Mutant | -10/Materials Mutant | -10/Subcaves Mutant | -7/Scraptown Resources | -11 -10 -10 -7 ----------- Run | Yrd Mat Sub Scr Matter Collected 427 | 240 55 63 69 Remotely . | . . . . Salvage Created 533 | 77 151 119 186 Parts 26 | 3 4 9 10 Haulers Intercepted 2 | . 2 . . Recyclers Shooed . | . . . . Parts Field Recycled . | . . . . Retrieved Matter . | . . . . Parts Self-Destructed 12 | . . 12 . Prevented . | . . . . Parts Restored . | . . . . Kills | -11 -10 -10 -7 ------- Run | Yrd Mat Sub Scr Combat Hostiles Destroyed 9 | . 1 4 4 Guns 6 | . . 4 2 AOE 2 | . . . 2 Classes Destroyed 10 | 2 2 3 3 Tunneler 1 | 1 . . . Hauler 2 | . 2 . . Recycler 1 | 1 . . . Turret 1 | . . 1 . Swarmer 3 | . . 3 . Grunt 1 | . 1 . . Sentry 1 | . . 1 . Federalist 1 | . . . 1 Explorer 1 | . . . 1 Scrapper 2 | . . . 2 Best Kill Streak 3 | 1 1 3 3 Combat Bots Only 3 | . 1 2 3 Max Kills in Single Turn 1 | 1 1 1 1 Gunslinging . | . . . . Exploded 1 | . . . 1 Melee . | . . . . Uniques/NPCs Destroyed . | . . . . Combat | -11 -10 -10 -7 -------- Run | Yrd Mat Sub Scr Hostile Shots Fired 61 | . . 7 54 Missed 16 | . . 1 15 Hits 45 | . . 6 39 Melee 8 | . . . 8 Projectile 37 | . . 6 31 Critical Strikes 2 | . . . 2 Damage Taken 951 | . . 55 896 Core 255 | . . 19 236 Absorbed by Shields . | . . . . Core Remaining (%) 100 | 100 . . . Volleys Fired 54 | 3 12 19 20 Largest 2 | 2 2 2 2 Hottest 130 | 90 100 100 130 Shots Fired 94 | 6 21 38 29 Gun 91 | 6 21 38 26 Cannon . | . . . . Launcher 3 | . . . 3 Special . | . . . . Kinetic 14 | . . 5 9 Thermal 77 | 6 21 33 17 Explosive 3 | . . . 3 Electromagnetic . | . . . . Robot Hit Streak 8 | 3 8 4 8 Robot Miss Streak 4 | 1 3 4 4 Penetration Max . | . . . . Secondary Targets 1 | . . 1 . Max Gunslinging Chain 1 | . . 1 . Shots Hit Robots 45 | 3 13 7 22 Core Hits 26 | 3 3 7 13 Critical Kills . | . . . . Critical Parts Destroyed . | . . . . Critical Strikes 3 | . 1 2 . Burn 3 | . 1 2 . Melee Attacks 3 | . . . 3 Impact . | . . . . Slashing 3 | . . . 3 Piercing . | . . . . Sneak Attacks . | . . . . Combat Hostiles . | . . . . Follow-up Attacks . | . . . . Damage Inflicted 881 | 36 177 96 572 Guns 647 | 36 177 96 338 Cannons . | . . . . Explosions 212 | . . . 212 Melee 22 | . . . 22 Ramming . | . . . . Kinetic 180 | . . 22 158 Thermal 467 | 36 177 74 180 Explosive 212 | . . . 212 Electromagnetic . | . . . . Impact . | . . . . Slashing 22 | . . . 22 Piercing . | . . . . Highest Corruption 1 | . 1 1 1 Average Corruption 1 | . 1 1 1 Corruption Purged . | . . . . Corruption Blocked . | . . . . Effects 20 | . 4 5 11 Message Errors 6 | . 1 1 4 Matter Fused 4 | . 2 1 1 Heat Flow Errors 1 | . . . 1 Energy Discharges 1 | . . 1 . Data Loss (minor) 6 | . 1 2 3 Data Loss (major) 1 | . . . 1 Weapon Failures 1 | . . . 1 Overload Shots . | . . . . Overflow Damage . | . . . . Projectiles . | . . . . Explosions . | . . . . Melee . | . . . . Knockbacks . | . . . . Impact . | . . . . Kinetic . | . . . . Secondary . | . . . . Self-Inflicted Damage . | . . . . Shots . | . . . . Rammed . | . . . . Targets Rammed . | . . . . Kicked . | . . . . Crushed . | . . . . Highest Temperature 234 | 60 234 . 215 Average Temperature 70 | 28 81 . 70 Received Heat Transfer 416 | . . . 416 Effects 1 | . . . 1 Energy Bleed 1 | . . . 1 Siege Activations . | . . . . Martial Activations . | . . . . Shielding Activations . | . . . . Robots Disrupted . | . . . . Combat Hostiles . | . . . . Robots Corrupted . | . . . . Combat Hostiles . | . . . . Parts Fried . | . . . . Impact Corruptions . | . . . . Robots Melted 1 | . 1 . . Combat Hostiles . | . . . . Parts Melted 1 | . 1 . . Heat Transferred 1482 | 99 592 370 421 Parts Sabotaged . | . . . . Parts Stolen . | . . . . Parts Stripped . | . . . . Power Chain Reactions . | . . . . Alert | -11 -10 -10 -7 ------- Run | Yrd Mat Sub Scr Maximum Alert Level . | . . . . Low Security (%) 100 | 100 100 . . Level 1 . | . . . . Level 2 . | . . . . Level 3 . | . . . . Level 4 . | . . . . Level 5 . | . . . . High Security . | . . . . Max Security . | . . . . Peak Influence 20 | 5 20 . . Initial . | . . . . Average 2 | . 3 . . Influence Increases 198 | 10 73 115 . Destroy 0b10 Robot/C 120 | . 20 100 . Destroy 0b10 Robot/NC 20 | 10 10 . . Destroy Leader 14 | . 14 . . Successful Hack 14 | . 14 . . Partial Spotted 15 | . 15 . . Lose Combat Pursuer 15 | . . 15 . Influence Decreases 198 | 10 73 115 . Time Decay 198 | 10 73 115 . Squads Dispatched 1 | . 1 . . Investigation 1 | . 1 . . Extermination . | . . . . Reinforcement . | . . . . Assault . | . . . . Garrison . | . . . . Intercept . | . . . . Searches Triggered . | . . . . Construction Impeded . | . . . . Haulers Reinforced . | . . . . Active Scanning Responses . | . . . . Cargo Convoy Interrupts . | . . . . Stealth | -11 -10 -10 -7 --------- Run | Yrd Mat Sub Scr Distress Signals 1 | . 1 . . Communications Jammed . | . . . . Distress Signals . | . . . . Times Spotted 25 | . 2 8 15 Peak Tracking Total 6 | . 1 6 4 Tactical Retreats 1 | . . 1 . Traps | -11 -10 -10 -7 ------- Run | Yrd Mat Sub Scr Traps Triggered . | . . . . Indirectly . | . . . . Trap Hack Attempts . | . . . . Triggered . | . . . . Disarmed . | . . . . Reprogrammed . | . . . . Reused . | . . . . Traps Extracted . | . . . . Installed . | . . . . Triggered . | . . . . Machines | -11 -10 -10 -7 ---------- Run | Yrd Mat Sub Scr Machines Disabled 1 | . . 1 . Max in Single Turn 1 | . . 1 . Machines Repaired . | . . . . Machines Dismantled . | . . . . Machines Sabotaged . | . . . . Overloaded Fab Kills . | . . . . Hacking | -11 -10 -10 -7 --------- Run | Yrd Mat Sub Scr Machines Accessed 14 | . 5 . 9 Terminals 5 | . 5 . . Fabricators . | . . . . Repair Stations . | . . . . Recycling Units . | . . . . Scanalyzers . | . . . . Garrison Access . | . . . . Total Hacks 84 | . 12 . 72 Successful 80 | . 8 . 72 Failed 4 | . 4 . . Catastrophic . | . . . . Database Lockouts . | . . . . Manual . | . . . . Terminals 12 | . 12 . . Fabricators . | . . . . Repair Stations . | . . . . Recycling Units . | . . . . Scanalyzers . | . . . . Garrison Access . | . . . . Terminal Hacks 80 | . 8 . 72 Record 68 | . 2 . 66 Robot Analysis 6 | . . . 6 Prototype ID Bank 1 | . 1 . . Branch Access Points 1 | . 1 . . Alert Level 1 | . 1 . . Locate Traps 1 | . 1 . . Dispatch Records 1 | . 1 . . Zone Layout 1 | . 1 . . Fabricator Hacks . | . . . . Repair Station Hacks . | . . . . Recycling Unit Hacks . | . . . . Scanalyzer . | . . . . Garrison Access Hacks . | . . . . Unauthorized Hacks . | . . . . Terminals . | . . . . Fabricators . | . . . . Repair Stations . | . . . . Recycling Units . | . . . . Scanalyzers . | . . . . Garrison Access . | . . . . Data Cores Recovered . | . . . . Used . | . . . . Hacking Detections 5 | . 5 . . Full Trace Events 1 | . 1 . . Feedback Events 1 | . 1 . . Corruption 1 | . 1 . . Feedback Blocked . | . . . . Robot Schematics Acquired . | . . . . Robots Built . | . . . . Authchips . | . . . . Time . | . . . . Total Robot Build Rating . | . . . . Part Schematics Acquired . | . . . . Parts Built . | . . . . Authchips . | . . . . Time . | . . . . Total Part Build Rating . | . . . . Part Studies Acquired . | . . . . Parts Repaired . | . . . . Time . | . . . . Parts Recycled . | . . . . Recycled Matter . | . . . . Retrieved Matter . | . . . . Retrieved Components . | . . . . Parts Scanalyzed . | . . . . Part Schematics Acquired . | . . . . Parts Damaged . | . . . . Bothacking | -11 -10 -10 -7 ------------ Run | Yrd Mat Sub Scr Used RIF Installer . | . . . . Robots Hacked . | . . . . Non-combat . | . . . . Combat . | . . . . Robot Hacks Applied . | . . . . Relay Couplers Released . | . . . . Fabnet Peak Effective % . | . . . . Robots Rewired . | . . . . Allies Hacked . | . . . . Hacks Repelled . | . . . . Allies | -11 -10 -10 -7 -------- Run | Yrd Mat Sub Scr Total Allies . | . . . . Largest Group . | . . . . Highest-Rated Group . | . . . . Highest-Rated Ally . | . . . . Total Orders . | . . . . Ally Attacks . | . . . . Total Damage . | . . . . Kills . | . . . . Allies Corrupted . | . . . . Allies Melted 1 | . . . 1 Intel | -11 -10 -10 -7 ------- Run | Yrd Mat Sub Scr Active Infowar (turns) . | . . . . Robot Analysis Total 6 | . . . 6 Derelict Logs Recovered . | . . . . Drone Launches . | . . . . Drone Recoveries . | . . . . Exploration | -11 -10 -10 -7 ------------- Run | Yrd Mat Sub Scr Turns Passed 2688 | 88 424 773 1403 Spaces Moved 2043 | 53 309 580 1101 Core 2 | 2 . . . Treads . | . . . . Legs 2028 | 38 309 580 1101 Wheels 13 | 13 . . . Hover . | . . . . Flight . | . . . . Fastest Speed 50 | 50 120 120 120 Average Speed 119 | 112 120 120 120 Slowest Speed 190 | 120 120 120 190 Overloaded Moves . | . . . . Propulsion Burnouts . | . . . . Robots Hopped . | . . . . Potential Cave-ins . | . . . . Cave-ins Triggered . | . . . . Exploration Rate (%) 40 | 4 57 26 76 Regions Visited 3 Branch Regions 2 Pre-discovered Areas . | . . . . Known Exits Taken 2 | . 1 1 . Unknown Exits Taken 1 | 1 . . . Scrap Searched 1 | . . . 1 Spaces Dug . | . . . . Terrain Destroyed 30 | . . . 30 Melee . | . . . . Projectile 1 | . . . 1 AOE 29 | . . . 29 Terrain Rammed . | . . . . Walls Destroyed . | . . . . Machines Disabled . | . . . . Actions | -11 -10 -10 -7 --------- Run | Yrd Mat Sub Scr Total 2196 | 76 345 620 1155 Wait 17 | . . 16 1 Move 2040 | 52 308 579 1101 Hop . | . . . . Pick Up 34 | 11 12 2 9 Fast Attach 7 | 1 2 . 4 Attach 8 | 6 . . 2 Detach 1 | 1 . . . Swap 7 | 1 1 2 3 Drop 25 | 1 10 2 12 Fire 54 | 3 12 19 20 Melee 3 | . . . 3 Ram . | . . . . Kick . | . . . . Crush . | . . . . Escape Stasis . | . . . . Rewire . | . . . . Trap . | . . . . Miscellaneous . | . . . . Route ------- -11/Scrapyard -10/Materials (discovered 4 exits: [*Mat] / *Min x2 / *Sub) -10/Subcaves (discovered 2 exits: *Rec / *Scr) -7/Scraptown (discovered 1 exit: *Fac) History --------- Turn | Location | Event 15 | -11/Scrapyard | Discovered new exit (range 14) 89 | -11/Scrapyard | Entered Materials 90 | -10/Materials | Met a group of wandering Federalists 129 | -10/Materials | Identified exit to Mines 146 | -10/Materials | Discovered new exit (range 14) 260 | -10/Materials | Discovered new exit (range 10) 301 | -10/Materials | Build established: Mutant 512 | -10/Materials | Identified exit to Subcaves 513 | -10/Materials | Entered Subcaves 514 | -10/Subcaves | Continued accompanying wandering Federalists (1) 556 | -10/Subcaves | A swath of the cavern ceiling suddenly collapsed 655 | -10/Subcaves | Discovered new exit (range 16) 678 | -10/Subcaves | Lost 3 allies 678 | -10/Subcaves | Identified exit to Recycling 756 | -10/Subcaves | Shifting Twisted Machinery released Sub. Machine Gun 770 | -10/Subcaves | Shifting Twisted Machinery released Flamer 1285 | -10/Subcaves | Identified exit to Scraptown 1286 | -10/Subcaves | Entered Scraptown 1576 | -7/Scraptown | Visited UFD Registry 1576 | -7/Scraptown | Registered with UFD as "Smoothstep" 1616 | -7/Scraptown | Visited Comm Corps 1684 | -7/Scraptown | Visited Fellowship of the Rings 1723 | -7/Scraptown | Visited Junk Repository 1753 | -7/Scraptown | Visited Cyclists 1772 | -7/Scraptown | Entered Cyclist Reading Room 1977 | -7/Scraptown | Visited Symbiants 2022 | -7/Scraptown | Visited Shadow of the Wyrm 2117 | -7/Scraptown | Visited Cartography Club 2154 | -7/Scraptown | Visited Curators Association 2186 | -7/Scraptown | Visited Supply Room 2322 | -7/Scraptown | Discovered new exit (range 5) 2326 | -7/Scraptown | Identified exit to Factory 2364 | -7/Scraptown | Visited Junk Repository 2390 | -7/Scraptown | Visited Analyses Database 2444 | -7/Scraptown | Met Optimus 2444 | -7/Scraptown | Accepted into 0bPrime 2513 | -7/Scraptown | Visited Scrap Suit Storage 2523 | -7/Scraptown | Found Scrap Suit 2554 | -7/Scraptown | Visited Chapter 10 2568 | -7/Scraptown | Civil war broke out across Scraptown 2682 | -7/Scraptown | Core integrity fell below 50% 2688 | -7/Scraptown | Core integrity fell below 20% 2689 | -7/Scraptown | Destroyed by X8-F83(x) with Makeshift Spear Last Messages --------------- 02657_ YZ-5YQ(E) destroyed. 02660_ GE-NC3(g) destroyed. 02662_ BU-4T1(j) heat short circuits Unknown Processor. 02662_ LB-OTG(j) destroyed. 02662_ Ovr. Pulse Rifle destroyed. 02663_ The unstable cave ceiling collapses. 02665_ Acquired Ovr. Pulse Rifle. 02670_ The unstable cave ceiling collapses. 02672_ Ovr. Pulse Rifle suddenly begins malfunctioning. 02675_ BU-4T1(j) heat damages Ovr. Pulse Rifle. 02675_ Lgt. Ion Engine destroyed. 02683_ Overheating: Energy bleed (-18). 02684_ Med. Laser destroyed. 02686_ VE-U2A(j) heat spikes uncontrollably. 02686_ Critical hit (Burn: +50). 02689_ D2-8EX(j): "To all who oppose us, at least your donations are appreciated." [Achievement: This Is Interesting...] Map ----- +----------------------------------------------------+ | ?????????????????????????????????????????????????? | | ?????????????????????????????????????????????????? | | ?????????????????????????????????????????????????? | | ?????????????????????????????????????????????????? | | ?????????????????????????????#####???????????????? | | ?????????????????????????????#"""#???????????????? | | #################???####?????#" "#???????????????? | | "##"""##""|##"""#??## ##????# < #???????????????? | | ##"" ##""|##!!"#### ###### ##??????????????? | | #??????????????? | | #??????????????? | | #################### ! ###########??????????????? | | ???????????????????##![##????????????????????????? | | ##???##????????????##=%#?????????????????????????? | | #"###"#???????????? !!###???????????????????????? | | # "!" ####?????????#=% ???????????????????????? | | """ "??????????#%jj # ???????????????????????? | | " ""#???????????[=! #??????????????????????? | | " "]##########?? = #??????????????????????? | | " ""##//= """#? ########???????????????? | | "#/=[ ="""#? !! # !#???????????????? | | " ""##""[[[[["###[% !# ! #! #???????????????? | | " "[##"" //#?" !# # # #???????????????? | | " ""##" //#?# %# #???????????????? | | "#" #?#==# #???????????????? | | ### ########### ###?#%[##@########???????????????? | | ### ########### #####!!##x##?????????????????????? | | """ """"""""""" "!*%[ !*"#########?????????????? | | ![%=!%[%"## """"#?????????????? | | [=!![!=="## """"#?????????????? | | [%!*!! [ ## " "#?????????????? | | =!%! ## ""#?????????????? | | == =%! "#?????????????? | | """""""""""""""""""" %! !=## X"#?????????????? | | """""""""""""""""""""* "## " "#?????????????? | | # ################" !% "## """"#?????????????? | | ##????????#" "##########????????????? | | X"#????????#" "## #"""""#????????????? | | " "" ##????????#"" j "## !! ! #????????????? | | "" X"#??????###""x "## !! ##"#?????????? | | " ######### #"" "## X" #?????????? | | "" #?????????? | | "" "## #?????????? | | " ######### #"" "## !!!!! !#?????????? | | "" ""#??????###"" "## #"""""#""#?????????? | | " "" ##????????#"" "#############?????????? | | X"#????????#"" "#?????????????????????? | | ##????????#"" "##????????????????????? | | # ######????????##"" !% "#"####??????#?????????? | | """""????????????"""" = "## ""######"#?????????? | +----------------------------------------------------+ Best States ------------- Heat Dissipation 25 Energy Generation 14 Energy Capacity 250 Matter Stores 300 Matter Capacity 300 Sight Range 16 Terrain Scan Density 10 Evasion (%) 55 Item Schematics ----------------- None Robot Schematics ------------------ None Fabricated ------------ Nothing Repaired ---------- Nothing Studied --------- None Alien Tech Used ----------------- None Achievements -------------- Armchair Analyst Bob, First Of His Name Civilization 2243 Link The Feds Strength In Numbers This Is Interesting... Challenges ------------ None Game ------ Seed WaveZioniteMaxwheels Manual? 0 Play Time 00:39:47 Cumulative 42.6 hours Start 2026.07.28 @ 03:33:33 End 2026.07.28 @ 04:16:17 Sessions 1 Manual Loads 0 Difficulty Rogue Special Mode None Game No. 63 Rogue 63 Adventurer 0 Explorer 0 Win Type - Total 1 Types 1/0/0/0/0/0/0/0/0/0 Lore% 28 Gallery% 32 Achievement% 20 Wizard Run 0 Options --------- Layout 1 ASCII 0 Keyboard 0 Movement Mouse Keybinds 0 Fullscreen 2 Font 32/SmallcapsGlow Map View 50x35 Zoom Use 0% Tactical HUD 1 Map Filters NONE Filters NONE Steam 1 RUN: 108bda19-9ef8-402d-ad5a-edd8fd173ce9